bitfinex-derivatives/quotes_BTCF0:USTF0_20240825
["timestamp","ask_amount","ask_price","bid_price","bid_amount"]
[1724581956330,0.13009868,63936.0,63935.0,0.1124]
[1724581956934,0.13009868,63936.0,63935.0,0.4732]
[1724581958843,0.19022584,63936.0,63935.0,0.42588001]
[1724581961537,0.18792367,63936.0,63935.0,0.42588001]
[1724581962147,0.26607867,63936.0,63935.0,0.42588001]
[1724581963146,0.37545363,63936.0,63935.0,0.42588001]
[1724581963441,0.62689987,63936.0,63935.0,0.01]
[1724581963642,0.76705519,63936.0,63935.0,0.00590691]
[1724581963844,1.05874487,63936.0,63929.0,0.00023462]
[1724581964046,0.078163,63930.0,63929.0,0.07023462]
[1724581964247,0.15047703,63930.0,63929.0,0.07023462]
[1724581964447,0.21387325,63930.0,63929.0,0.07023462]
[1724581964650,0.21427325,63930.0,63929.0,0.07023462]
[1724581965148,0.21527325,63930.0,63929.0,0.07023462]
[1724581965846,0.21827325,63930.0,63929.0,0.07023462]
[1724581966843,0.19186357,63930.0,63929.0,0.07023462]
[1724581967046,0.081563,63930.0,63929.0,0.07023462]
[1724581967241,0.084563,63930.0,63929.0,0.07123462]
[1724581967754,0.084563,63930.0,63929.0,0.07223462]
[1724581968247,0.081563,63930.0,63929.0,0.07123462]
[1724581968549,0.081563,63930.0,63929.0,0.07223462]
[1724581968550,0.084563,63930.0,63929.0,0.07223462]
[1724581969648,0.10407444,63930.0,63929.0,0.07223462]
[1724581971541,0.16651131,63930.0,63929.0,0.07223462]
[1724581974947,0.12941883,63930.0,63929.0,0.07223462]
[1724581980558,0.17552475,63930.0,63929.0,0.07223462]
[1724581980953,0.17252475,63930.0,63929.0,0.07023462]
[1724581981258,0.078164,63929.0,63921.0,0.3608]
[1724581981456,0.078164,63929.0,63921.0,0.4508]
[1724581981457,0.09370013,63923.0,63921.0,0.4508]
[1724581981754,0.07110509,63928.0,63921.0,0.4508]
[1724581981755,0.11904568,63922.0,63921.0,0.4508]
[1724581981957,0.0004,63922.0,63921.0,0.4508]
[1724581982153,0.06288658,63922.0,63921.0,0.4508]
[1724581982349,0.06288658,63922.0,63921.0,0.49760498]
[1724581982350,0.0004,63922.0,63921.0,0.49760498]
[1724581982857,0.078572,63922.0,63921.0,0.49760498]
[1724581983254,0.078572,63922.0,63921.0,0.4508]
[1724581983958,0.080572,63922.0,63921.0,0.4508]
[1724581984761,0.083572,63922.0,63921.0,0.4518]
[1724581984959,0.087572,63922.0,63921.0,0.4528]
[1724581985162,0.15004325,63922.0,63921.0,0.4528]
[1724581985549,0.087572,63922.0,63921.0,0.4528]
[1724581986159,0.15004068,63922.0,63921.0,0.4528]
[1724581988958,0.14604068,63922.0,63921.0,0.4518]
[1724581989174,0.086572,63922.0,63921.0,0.49960498]
[1724581989459,0.086572,63922.0,63921.0,0.530974]
[1724581990564,0.10099914,63922.0,63921.0,0.57677898]
[1724581990758,0.10499914,63922.0,63921.0,0.57777898]
[1724581991165,0.10499914,63922.0,63921.0,0.530974]
[1724581991358,0.09799914,63922.0,63921.0,0.528974]
[1724581991558,0.16746782,63922.0,63921.0,0.57577898]
[1724581991967,0.16446782,63922.0,63921.0,0.57577898]
[1724581992265,0.16746782,63922.0,63921.0,0.21497898]
[1724581996357,0.08929582,63922.0,63921.0,0.21497898]
[1724581997961,0.08829582,63922.0,63921.0,0.21497898]
[1724581998173,0.02582714,63922.0,63921.0,0.168174]
[1724581998563,0.02182714,63922.0,63921.0,0.168174]
[1724581998765,0.02482714,63922.0,63921.0,0.168174]
[1724582000070,0.02182714,63922.0,63921.0,0.168174]
[1724582000368,0.02482714,63922.0,63921.0,0.168174]
[1724582000870,0.02182714,63922.0,63921.0,0.168174]
[1724582001070,0.02282714,63922.0,63921.0,0.168174]
[1724582001272,0.02482714,63922.0,63921.0,0.168174]
[1724582001767,0.02282714,63922.0,63921.0,0.168174]
[1724582003366,0.02182714,63922.0,63921.0,0.168174]
[1724582003572,0.02282714,63922.0,63921.0,0.168174]
[1724582003774,0.10099914,63922.0,63921.0,0.168174]
[1724582003976,0.10099914,63922.0,63921.0,0.09]
[1724582004367,0.10199914,63922.0,63921.0,0.09]
[1724582004575,0.10099914,63922.0,63921.0,0.09]
[1724582004873,0.10299914,63922.0,63921.0,0.09]
[1724582006275,0.10199914,63922.0,63921.0,0.09]
[1724582006465,0.10499914,63922.0,63921.0,0.09]
[1724582007074,0.10499914,63922.0,63921.0,0.091]
[1724582007473,0.10499914,63922.0,63921.0,0.092]
[1724582010674,0.18311691,63922.0,63921.0,0.092]
[1724582019687,0.67783892,63922.0,63921.0,0.01411464]
[1724582020399,1.18783892,63922.0,63921.0,0.01411464]
[1724582020790,1.10966692,63922.0,63921.0,0.01411464]
[1724582021191,0.64034692,63922.0,63921.0,0.01411464]
[1724582025796,1.00114692,63922.0,63921.0,0.01411464]
[1724582026203,1.09488283,63922.0,63921.0,0.01411464]
[1724582026997,0.49114692,63922.0,63921.0,0.01411464]
[1724582029597,0.4911476,63922.0,63921.0,0.01411464]
[1724582030801,0.1303476,63922.0,63921.0,0.01411464]
[1724582030993,0.4911476,63922.0,63921.0,0.01411464]
[1724582031605,0.4910776,63922.0,63921.0,0.01411464]
[1724582032804,0.4907476,63922.0,63921.0,0.01411464]
[1724582034499,0.1299476,63922.0,63921.0,0.01411464]
[1724582034807,0.4907476,63922.0,63921.0,0.01411464]
[1724582035002,0.1299476,63922.0,63921.0,0.01411464]
[1724582035203,0.4907476,63922.0,63921.0,0.01411464]
[1724582036495,0.1299476,63922.0,63921.0,0.01411464]
[1724582036701,0.4907476,63922.0,63921.0,0.01411464]
[1724582037700,0.58448351,63922.0,63921.0,0.01411464]
[1724582037896,0.4907476,63922.0,63921.0,0.01411464]
[1724582038107,0.58448351,63922.0,63921.0,0.01411464]
[1724582039104,0.22368351,63922.0,63921.0,0.01411464]
[1724582039309,0.58448351,63922.0,63921.0,0.01411464]
[1724582039501,0.22368351,63922.0,63921.0,0.01411464]
[1724582039701,0.58448351,63922.0,63921.0,0.01411464]
[1724582040601,0.22368351,63922.0,63921.0,0.01411464]
[1724582040908,0.58448351,63922.0,63921.0,0.01411464]
[1724582041109,0.4907476,63922.0,63921.0,0.01411464]
[1724582041902,0.22369983,63922.0,63921.0,0.01411464]
[1724582042101,0.4907476,63922.0,63921.0,0.01411464]
[1724582046706,0.5689196,63922.0,63921.0,0.01411464]
[1724582047006,0.5689196,63922.0,63921.0,0.002]
[1724582047206,0.6137834,63922.0,63921.0,0.002]
[1724582050616,0.2529834,63922.0,63921.0,0.002]
[1724582050927,0.6137834,63922.0,63921.0,0.002]
[1724582051305,0.15636,63916.0,63915.0,0.00023462]
[1724582051614,0.46432846,63916.0,63908.0,0.04685282]
[1724582051804,0.3608,63909.0,63908.0,0.03]
[1724582052010,0.38614846,63909.0,63908.0,0.03]
[1724582052307,0.38654846,63909.0,63908.0,0.03]
[1724582052820,0.46473646,63909.0,63908.0,0.03]
[1724582053323,0.46473646,63909.0,63908.0,0.036]
[1724582054318,0.439388,63909.0,63908.0,0.036]
[1724582054817,0.078588,63909.0,63908.0,0.036]
[1724582055116,0.439388,63909.0,63908.0,0.041]
[1724582055317,0.51747786,63909.0,63908.0,0.041]
[1724582056821,0.53703477,63909.0,63908.0,0.041]
[1724582058317,0.45894491,63909.0,63908.0,0.041]
[1724582065016,0.53703477,63909.0,63908.0,0.041]
[1724582070622,0.45894491,63909.0,63908.0,0.041]
[1724582071225,0.48429867,63909.0,63908.0,0.041]
[1724582074131,0.12349867,63909.0,63908.0,0.041]
[1724582074333,0.48429867,63909.0,63908.0,0.041]
[1724582074830,0.56248667,63909.0,63908.0,0.041]
[1724582077835,0.65628462,63909.0,63908.0,0.01102159]
[1724582078042,0.56248667,63909.0,63908.0,0.01102159]
[1724582079435,0.56248667,63909.0,63908.0,0.00602159]
[1724582079934,0.56248667,63909.0,63908.0,0.00102159]
[1724582080943,0.48429867,63909.0,63908.0,0.00102159]
[1724582082340,0.65633957,63909.0,63908.0,2.159e-05]
[1724582082642,0.65633957,63909.0,63908.0,0.001]
[1724582082643,0.66033957,63909.0,63908.0,0.001]
[1724582082940,0.66033957,63909.0,63905.0,0.04685282]
[1724582082941,0.078192,63906.0,63905.0,0.04685282]
[1724582083138,0.10354576,63906.0,63905.0,0.07685282]
[1724582083842,0.10394576,63906.0,63905.0,0.07685282]
[1724582084142,0.10794576,63906.0,63905.0,0.07785282]
[1724582084342,0.11294576,63906.0,63905.0,0.07885282]
[1724582085043,0.10794576,63906.0,63905.0,0.07785282]
[1724582085239,0.11294576,63906.0,63905.0,0.07885282]
[1724582085647,0.11294576,63906.0,63905.0,0.07785282]
[1724582085839,0.11294576,63906.0,63905.0,0.07885282]
[1724582086743,0.11294576,63906.0,63905.0,0.07785282]
[1724582086937,0.11294576,63906.0,63905.0,0.07885282]
[1724582087340,0.11294576,63906.0,63905.0,0.032]
[1724582087847,0.25724576,63906.0,63905.0,0.032]
[1724582089535,0.33543776,63906.0,63905.0,0.032]
[1724582089851,0.078196,63903.0,63902.0,0.00023462]
[1724582090149,0.10355171,63903.0,63902.0,0.01023462]
[1724582090444,0.61355171,63903.0,63902.0,0.01023462]
[1724582090644,0.61395171,63903.0,63902.0,0.01023462]
[1724582090946,0.61895171,63903.0,63902.0,0.01123462]
[1724582092446,0.71276099,63903.0,63902.0,0.01123462]
[1724582092646,0.71776099,63903.0,63902.0,0.01223462]
[1724582094947,0.70214771,63903.0,63902.0,0.01223462]
[1724582095146,0.70214771,63903.0,63894.0,0.04685282]
[1724582095147,0.078197,63902.0,63894.0,0.04685282]
[1724582095343,0.0781554,63897.0,63894.0,0.11]
[1724582095646,0.0781554,63896.0,63894.0,0.11]
[1724582095852,0.0004,63895.0,63894.0,0.11]
[1724582096852,0.078605,63895.0,63894.0,0.111]
[1724582099550,0.439405,63895.0,63894.0,0.111]
[1724582099752,0.5175604,63895.0,63894.0,0.111]
[1724582100557,0.439405,63895.0,63894.0,0.111]
[1724582100757,0.5175604,63895.0,63894.0,0.111]
[1724582102254,0.439405,63895.0,63894.0,0.111]
[1724582108063,0.078605,63895.0,63894.0,0.111]
[1724582108273,0.439405,63895.0,63894.0,0.111]
[1724582108676,0.078605,63895.0,63894.0,0.111]
[1724582108868,0.439405,63895.0,63894.0,0.111]
[1724582109172,0.078605,63895.0,63894.0,0.111]
[1724582109366,0.439405,63895.0,63894.0,0.111]
[1724582110375,0.078605,63895.0,63894.0,0.111]
[1724582110868,0.439405,63895.0,63894.0,0.111]
[1724582114167,0.5175604,63895.0,63894.0,0.111]
[1724582116076,0.1567604,63895.0,63894.0,0.111]
[1724582116278,0.439405,63895.0,63894.0,0.111]
[1724582117165,0.46476434,63895.0,63894.0,0.111]
[1724582119068,0.46476507,63895.0,63894.0,0.111]
[1724582119272,0.55855155,63895.0,63894.0,0.111]
[1724582119472,0.46476507,63895.0,63894.0,0.111]
[1724582123175,0.55855155,63895.0,63894.0,0.111]
[1724582125181,0.46476507,63895.0,63894.0,0.111]
[1724582126475,0.38656007,63895.0,63894.0,0.111]
[1724582126784,0.0786115,63895.0,63894.0,0.189207]
[1724582126985,0.0004,63895.0,63894.0,0.189207]
[1724582127972,0.0004,63895.0,63894.0,0.23610231]
[1724582129987,0.0004,63895.0,63894.0,0.189207]
[1724582131687,0.0004,63895.0,63894.0,0.23609191]
[1724582133687,0.078605,63895.0,63894.0,0.23609191]
[1724582134388,0.078605,63895.0,63894.0,0.15788491]
[1724582134583,0.078605,63895.0,63894.0,0.111]
[1724582135094,0.46476336,63895.0,63894.0,0.111]
[1724582136496,0.5586263,63895.0,63894.0,0.111]
[1724582137005,0.46476336,63895.0,63894.0,0.111]
[1724582137186,0.55858545,63895.0,63894.0,0.111]
[1724582138890,0.46476336,63895.0,63894.0,0.111]
[1724582139294,0.705122,63895.0,63894.0,0.111]
[1724582141203,0.70522499,63895.0,63894.0,0.111]
[1724582142703,0.5645267,63895.0,63894.0,0.08023782]
[1724582143297,1.1122517,63895.0,63894.0,0.00898336]
[1724582143589,1.1122517,63895.0,63883.0,0.3608]
[1724582143590,0.078219,63885.0,63871.0,0.0468]
[1724582143795,0.1094122,63878.0,63877.0,0.078227]
[1724582143990,0.15003774,63878.0,63877.0,0.188227]
[1724582144198,0.06598677,63878.0,63877.0,0.188227]
[1724582144407,0.17539897,63878.0,63877.0,0.188227]
[1724582144707,0.17552838,63878.0,63877.0,0.188227]
[1724582144889,0.17552838,63878.0,63877.0,0.200227]
[1724582145092,0.06611618,63878.0,63877.0,0.200227]
[1724582145603,0.06711618,63878.0,63877.0,0.210227]
[1724582145854,0.19538208,63878.0,63877.0,0.210227]
[1724582146303,0.08596988,63878.0,63877.0,0.210227]
[1724582147298,0.19538208,63878.0,63877.0,0.210227]
[1724582147603,0.06683576,63878.0,63877.0,0.210227]
[1724582147804,0.14506176,63878.0,63877.0,0.210227]
[1724582149105,0.09820911,63878.0,63877.0,0.210227]
[1724582150799,0.14506176,63878.0,63877.0,0.210227]
[1724582151005,0.09820911,63878.0,63877.0,0.210227]
[1724582151317,0.14504629,63878.0,63877.0,0.210227]
[1724582151693,0.14544629,63878.0,63877.0,0.210227]
[1724582155306,0.09860911,63878.0,63877.0,0.210227]
[1724582157807,0.09860911,63878.0,63877.0,0.132]
[1724582158106,0.14544629,63878.0,63877.0,0.132]
[1724582159010,0.09860911,63878.0,63877.0,0.132]
[1724582159314,0.14543657,63878.0,63877.0,0.132]
[1724582160102,0.09860911,63878.0,63877.0,0.132]
[1724582160610,0.1454429,63878.0,63877.0,0.132]
[1724582160839,0.1454429,63878.0,63877.0,0.25711191]
[1724582160840,0.02038311,63878.0,63877.0,0.25711191]
[1724582161204,0.02038311,63878.0,63877.0,0.210227]
[1724582162612,0.02038311,63878.0,63877.0,0.571027]
[1724582163217,0.0672169,63878.0,63877.0,0.571027]
[1724582163910,0.02038311,63878.0,63877.0,0.571027]
[1724582165217,0.0672169,63878.0,63877.0,0.571027]
[1724582165516,0.02038311,63878.0,63877.0,0.61790835]
[1724582166214,0.02038311,63878.0,63877.0,0.571027]
[1724582166215,0.08285331,63878.0,63877.0,0.571027]
[1724582167721,0.02038311,63878.0,63877.0,0.571027]
[1724582168516,0.09860911,63878.0,63877.0,0.571027]
[1724582169217,0.09860911,63878.0,63877.0,0.4808]
[1724582169409,0.12297318,63878.0,63877.0,0.4778]
[1724582169622,0.16312164,63878.0,63877.0,0.4778]
[1724582170209,0.12297318,63878.0,63877.0,0.4778]
[1724582172320,0.12297334,63878.0,63877.0,0.4778]
[1724582173820,0.12297334,63878.0,63877.0,0.117]
[1724582177519,0.09760911,63878.0,63877.0,0.17937645]
[1724582177921,0.17583222,63878.0,63877.0,0.117]
[1724582178121,0.12297417,63878.0,63877.0,0.16394009]
[1724582179527,0.09760911,63878.0,63877.0,0.16394009]
[1724582179828,0.1229742,63878.0,63877.0,0.16394009]
[1724582180216,0.1229742,63878.0,63877.0,0.117]
[1724582182537,0.09760911,63878.0,63877.0,0.117]
[1724582182945,0.12297406,63878.0,63877.0,0.117]
[1724582185645,0.09760911,63878.0,63877.0,0.117]
[1724582191745,0.12297407,63878.0,63877.0,0.117]
[1724582192448,0.16302994,63878.0,63877.0,0.117]
[1724582193553,0.27244214,63878.0,63877.0,0.117]
[1724582194050,0.16302994,63878.0,63877.0,0.117]
[1724582194578,0.27244214,63878.0,63877.0,0.117]
[1724582194857,0.16302994,63878.0,63877.0,0.117]
[1724582196442,0.20711741,63878.0,63877.0,0.117]
[1724582196646,0.27253824,63878.0,63877.0,0.117]
[1724582196847,0.78253824,63878.0,63877.0,0.117]
[1724582197257,0.72972237,63878.0,63877.0,0.117]
[1724582197448,0.85476489,63878.0,63877.0,0.117]
[1724582197656,0.72972237,63878.0,63877.0,0.117]
[1724582199562,0.63297407,63878.0,63877.0,0.117]
[1724582200859,0.99377407,63878.0,63877.0,0.117]
[1724582201254,1.08760843,63878.0,63877.0,0.117]
[1724582204856,0.72680843,63878.0,63877.0,0.117]
[1724582205056,1.08760843,63878.0,63877.0,0.117]
[1724582205364,0.57760843,63878.0,63877.0,0.117]
[1724582206162,0.57761022,63878.0,63877.0,0.117]
[1724582208665,0.48377586,63878.0,63877.0,0.117]
[1724582208966,0.57761022,63878.0,63877.0,0.117]
[1724582210168,0.57761038,63878.0,63877.0,0.117]
[1724582213369,0.48377602,63878.0,63877.0,0.117]
[1724582214475,0.57761038,63878.0,63877.0,0.117]
[1724582214872,0.48377602,63878.0,63877.0,0.117]
[1724582215179,0.57764335,63878.0,63877.0,0.117]
[1724582215770,0.48377602,63878.0,63877.0,0.10587312]
[1724582215985,0.57764567,63878.0,63877.0,0.10587312]
[1724582216771,0.57764567,63878.0,63877.0,0.10387312]
[1724582216772,0.58464567,63878.0,63877.0,0.10387312]
[1724582216982,0.59164567,63878.0,63877.0,0.10087312]
[1724582217474,0.59164567,63878.0,63877.0,0.06563324]
[1724582218767,0.49777602,63878.0,63877.0,0.06563324]
[1724582219578,0.59164303,63878.0,63877.0,0.05302592]
[1724582220160,0.5916446,63878.0,63877.0,0.05302592]
[1724582221279,0.5916446,63878.0,63877.0,0.03874892]
[1724582221679,0.49777602,63878.0,63877.0,0.03874892]
[1724582222579,0.49777602,63878.0,63877.0,0.01876892]
[1724582223173,0.59165341,63878.0,63877.0,0.01876892]
[1724582223584,0.59165382,63878.0,63877.0,0.01876892]
[1724582223773,0.49777602,63878.0,63877.0,0.01876892]
[1724582224169,0.5369438,63878.0,63877.0,0.00194592]
[1724582224384,0.5369438,63878.0,63877.0,0.01194592]
[1724582225082,0.6151698,63878.0,63877.0,0.01194592]
[1724582227082,0.6151698,63878.0,63877.0,0.00295592]
[1724582227287,0.078234,63872.0,63871.0,0.00015706]
[1724582227483,0.46440091,63872.0,63871.0,0.11015706]
[1724582228082,0.46480091,63872.0,63871.0,0.11015706]
[1724582229084,0.10400091,63872.0,63871.0,0.11015706]
[1724582229288,0.46580091,63872.0,63871.0,0.11015706]
[1724582230478,0.46580382,63872.0,63871.0,0.11015706]
[1724582231079,0.55966249,63872.0,63871.0,0.11015706]
[1724582235289,0.46580363,63872.0,63871.0,0.11015706]
[1724582235487,0.5596623,63872.0,63871.0,0.11015706]
[1724582236902,0.46580363,63872.0,63871.0,0.11015706]
[1724582237194,0.5186202,63872.0,63871.0,0.11015706]
[1724582237789,0.51861511,63872.0,63871.0,0.11015706]
[1724582238194,0.440434,63872.0,63871.0,0.11015706]
[1724582238394,0.51861546,63872.0,63871.0,0.11015706]
[1724582242498,0.46580137,63872.0,63871.0,0.11015706]
[1724582242701,0.440434,63872.0,63871.0,0.11015706]
[1724582243092,0.51862394,63872.0,63871.0,0.11015706]
[1724582243315,0.440434,63872.0,63871.0,0.11015706]
[1724582243801,0.46580175,63872.0,63871.0,0.11015706]
[1724582244303,0.440434,63872.0,63871.0,0.11015706]
[1724582244494,0.46580174,63872.0,63871.0,0.11015706]
[1724582245003,0.10500174,63872.0,63871.0,0.11015706]
[1724582245606,0.079634,63872.0,63871.0,0.11015706]
[1724582245801,0.10500162,63872.0,63871.0,0.11015706]
[1724582246415,0.079634,63872.0,63871.0,0.11015706]
[1724582246709,0.15783914,63872.0,63871.0,0.15709715]
[1724582248316,0.15783914,63872.0,63871.0,0.11015706]
[1724582249213,0.10500169,63872.0,63871.0,0.11015706]
[1724582250008,0.10500251,63872.0,63871.0,0.11015706]
[1724582250207,0.46580251,63872.0,63871.0,0.11015706]
[1724582251510,0.10500251,63872.0,63871.0,0.11015706]
[1724582251716,0.46580251,63872.0,63871.0,0.11015706]
[1724582254521,0.55966118,63872.0,63871.0,0.11015706]
[1724582254921,0.55966152,63872.0,63871.0,0.11015706]
[1724582255221,0.46580285,63872.0,63871.0,0.11015706]
[1724582257923,0.60616152,63872.0,63871.0,0.11015706]
[1724582259821,0.606162,63872.0,63871.0,0.11015706]
[1724582261122,0.51230333,63872.0,63871.0,0.11015706]
[1724582261330,0.15150333,63872.0,63871.0,0.11015706]
[1724582261525,0.51230333,63872.0,63871.0,0.11015706]
[1724582261915,0.15150333,63872.0,63871.0,0.11015706]
[1724582262115,0.51230333,63872.0,63871.0,0.11015706]
[1724582264019,0.15150333,63872.0,63871.0,0.11015706]
[1724582264215,0.51230333,63872.0,63871.0,0.11015706]
[1724582264825,0.51230316,63872.0,63871.0,0.11015706]
[1724582265011,0.15150316,63872.0,63871.0,0.11015706]
[1724582265216,0.51230316,63872.0,63871.0,0.11015706]
[1724582265613,0.51230316,63872.0,63871.0,0.15709715]
[1724582266053,0.15150316,63872.0,63871.0,0.15709715]
[1724582266331,0.51230316,63872.0,63871.0,0.15709715]
[1724582266519,0.15150316,63872.0,63871.0,0.15709715]
[1724582266717,0.51230316,63872.0,63871.0,0.15709715]
[1724582267317,0.15150316,63872.0,63871.0,0.15709715]
[1724582267518,0.51230316,63872.0,63871.0,0.15709715]
[1724582268017,0.15150316,63872.0,63871.0,0.15709715]
[1724582268218,0.51230316,63872.0,63871.0,0.15709715]
[1724582268513,0.15150316,63872.0,63871.0,0.15709715]
[1724582268718,0.51230316,63872.0,63871.0,0.15709715]
[1724582269139,0.15150316,63872.0,63871.0,0.15709715]
[1724582269383,0.51230316,63872.0,63871.0,0.15709715]
[1724582270228,0.51230317,63872.0,63871.0,0.15709715]
[1724582273429,0.15150317,63872.0,63871.0,0.15709715]
[1724582274233,0.51230317,63872.0,63871.0,0.15709715]
[1724582274732,0.51230311,63872.0,63871.0,0.15709715]
[1724582275632,0.51230311,63872.0,63871.0,0.11015706]
[1724582275828,0.60616178,63872.0,63871.0,0.11015706]
[1724582276231,0.51230311,63872.0,63871.0,0.11015706]
[1724582280830,0.15150311,63872.0,63871.0,0.11015706]
[1724582281033,0.51230311,63872.0,63871.0,0.11015706]
[1724582284639,0.51230325,63872.0,63871.0,0.11015706]
[1724582287229,0.15150325,63872.0,63871.0,0.11015706]
[1724582287631,0.51230325,63872.0,63871.0,0.11015706]
[1724582288336,0.55138295,63872.0,63871.0,0.11015706]
[1724582288561,0.62955047,63872.0,63871.0,0.11015706]
[1724582288743,0.62951563,63872.0,63871.0,0.07938739]
[1724582288938,0.07824,63867.0,63866.0,0.04694009]
[1724582289135,0.17228098,63867.0,63866.0,0.06]
[1724582289441,0.17228098,63867.0,63866.0,0.03125]
[1724582289442,0.10373356,63867.0,63866.0,0.03125]
[1724582289637,0.19805228,63867.0,63866.0,0.03125]
[1724582290142,0.10413356,63867.0,63866.0,0.03125]
[1724582290445,0.10413356,63867.0,63866.0,0.04025]
[1724582291139,0.18237356,63867.0,63866.0,0.04025]
[1724582291337,0.10413356,63867.0,63866.0,0.04025]
[1724582293344,0.12289629,63867.0,63866.0,0.04025]
[1724582296745,0.21681501,63867.0,63866.0,0.04025]
[1724582297143,0.12289629,63867.0,63866.0,0.04025]
[1724582298175,0.078247,63861.0,63860.0,0.04694009]
[1724582298352,0.078247,63861.0,63860.0,0.11]
[1724582298645,0.15656207,63861.0,63860.0,0.03294845]
[1724582298853,0.078257,63853.0,63852.0,0.04694009]
[1724582299053,0.36092172,63853.0,63852.0,0.11]
[1724582299243,0.43917872,63853.0,63852.0,0.11]
[1724582299644,0.43957872,63853.0,63852.0,0.11]
[1724582299847,0.36132172,63853.0,63852.0,0.11]
[1724582300250,0.36232172,63853.0,63852.0,0.11]
[1724582300446,0.36232172,63853.0,63852.0,0.188258]
[1724582300648,0.00152172,63853.0,63852.0,0.549058]
[1724582300957,0.00152172,63853.0,63852.0,0.598658]
[1724582301155,0.04838574,63853.0,63852.0,0.598658]
[1724582301574,0.04938574,63853.0,63852.0,0.598658]
[1724582302447,0.06738214,63853.0,63852.0,0.598658]
[1724582303247,0.06738214,63853.0,63852.0,0.237858]
[1724582303450,0.06738214,63853.0,63852.0,0.598658]
[1724582303858,0.02051812,63853.0,63852.0,0.598658]
[1724582304054,0.02051812,63853.0,63852.0,0.64553296]
[1724582304359,0.06737288,63853.0,63852.0,0.64553296]
[1724582304561,0.02051812,63853.0,63852.0,0.64553296]
[1724582304855,0.06737236,63853.0,63852.0,0.64553296]
[1724582306654,0.06737236,63853.0,63852.0,0.598658]
[1724582307044,0.06737236,63853.0,63852.0,0.64552718]
[1724582307249,0.02051812,63853.0,63852.0,0.64552718]
[1724582308158,0.02051812,63853.0,63852.0,0.59592718]
[1724582308458,0.06737236,63853.0,63852.0,0.549058]
[1724582311165,0.02051812,63853.0,63852.0,0.549058]
[1724582311374,0.06737236,63853.0,63852.0,0.549058]
[1724582311864,0.02051812,63853.0,63852.0,0.59592718]
[1724582312160,0.02051812,63853.0,63852.0,0.549058]
[1724582313562,0.06737236,63853.0,63852.0,0.59592718]
[1724582313868,0.02051812,63853.0,63852.0,0.59592718]
[1724582314162,0.02051812,63853.0,63852.0,0.549058]
[1724582315966,0.02051812,63853.0,63852.0,0.59594376]
[1724582316159,0.02051812,63853.0,63852.0,0.549058]
[1724582316563,0.02051812,63853.0,63852.0,0.59594984]
[1724582318174,0.02051812,63853.0,63852.0,0.549058]
[1724582319679,0.02051812,63853.0,63852.0,0.188258]
[1724582322779,0.02051812,63853.0,63852.0,0.549058]
[1724582323274,0.02051812,63853.0,63852.0,0.61143445]
[1724582323870,0.02051812,63853.0,63852.0,0.549058]
[1724582324070,0.02051812,63853.0,63852.0,0.61143445]
[1724582324276,0.08301021,63853.0,63852.0,0.549058]
[1724582324879,0.02051812,63853.0,63852.0,0.61143445]
[1724582325080,0.02051812,63853.0,63852.0,0.25063445]
[1724582326279,0.02051812,63853.0,63852.0,0.25084224]
[1724582326681,0.08307988,63853.0,63852.0,0.188258]
[1724582327416,0.08309214,63853.0,63852.0,0.25084224]
[1724582327648,0.08309214,63853.0,63852.0,0.25085383]
[1724582327775,0.08309214,63853.0,63852.0,0.188258]
[1724582328078,0.02051812,63853.0,63852.0,0.188258]
[1724582328788,0.02051812,63853.0,63852.0,0.549058]
[1724582339695,0.09869071,63853.0,63852.0,0.61168995]
[1724582341194,0.17694771,63853.0,63852.0,0.61168995]
[1724582341495,0.17694771,63853.0,63852.0,0.17263195]
[1724582341789,0.2179558,63853.0,63852.0,0.11]
[1724582341986,0.12414869,63853.0,63852.0,0.11]
[1724582342181,0.21801354,63853.0,63852.0,0.11]
[1724582343092,0.12415098,63853.0,63852.0,0.11]
[1724582343393,0.20240798,63853.0,63852.0,0.11]
[1724582343891,0.71240798,63853.0,63852.0,0.11]
[1724582351295,0.71240798,63853.0,63852.0,0.04487757]
[1724582351601,0.80625837,63853.0,63852.0,0.04487757]
[1724582351790,0.078264,63848.0,63845.0,0.078266]
[1724582351989,0.078264,63848.0,63845.0,0.178266]
[1724582352598,0.0004,63846.0,63845.0,0.178266]
[1724582353103,0.0004,63846.0,63845.0,0.1]
[1724582353300,0.0004,63846.0,63845.0,0.107]
[1724582353702,0.0004,63846.0,63845.0,0.15397157]
[1724582353905,0.0004,63846.0,63845.0,0.107]
[1724582354101,0.078665,63846.0,63845.0,0.113]
[1724582354908,0.079665,63846.0,63845.0,0.106]
[1724582355094,0.079665,63846.0,63845.0,0.113]
[1724582355095,0.080665,63846.0,63845.0,0.113]
[1724582356603,0.14316262,63846.0,63845.0,0.15997157]
[1724582356804,0.080665,63846.0,63845.0,0.113]
[1724582357303,0.0988508,63846.0,63845.0,0.113]
[1724582370619,0.17700262,63846.0,63845.0,0.113]
[1724582371662,0.0988508,63846.0,63845.0,0.15997157]
[1724582371810,0.17700262,63846.0,63845.0,0.15997157]
[1724582374216,0.17700262,63846.0,63845.0,0.113]
[1724582375214,0.17700262,63846.0,63845.0,0.1599526]
[1724582375609,0.12422908,63846.0,63845.0,0.113]
[1724582377016,0.12422936,63846.0,63845.0,0.113]
[1724582377818,0.21801154,63846.0,63845.0,0.113]
[1724582378022,0.12422936,63846.0,63845.0,0.113]
[1724582378319,0.63422936,63846.0,63845.0,0.113]
[1724582378622,0.12422936,63846.0,63845.0,0.113]
[1724582381030,0.21801154,63846.0,63845.0,0.113]
[1724582381826,0.21801254,63846.0,63845.0,0.113]
[1724582383328,0.20262615,63846.0,63845.0,0.113]
[1724582384458,0.296441,63846.0,63845.0,0.113]
[1724582384533,0.296441,63846.0,63845.0,0.07174995]
[1724582384724,0.20262615,63846.0,63845.0,0.07174995]
[1724582385333,0.29643207,63846.0,63845.0,0.07174995]
[1724582385529,0.2964318,63846.0,63845.0,0.07174995]
[1724582385731,0.20262615,63846.0,63845.0,0.07174995]
[1724582386231,0.29642606,63846.0,63845.0,0.07174995]
[1724582386636,0.29642551,63846.0,63845.0,0.07174995]
[1724582386834,0.29642545,63846.0,63845.0,0.07174995]
[1724582388135,0.29642886,63846.0,63845.0,0.07174995]
[1724582388339,0.29642768,63846.0,63845.0,0.07174995]
[1724582388634,0.20262615,63846.0,63845.0,0.07174995]
[1724582389640,0.29642568,63846.0,63845.0,0.07174995]
[1724582389937,0.20262615,63846.0,63845.0,0.07174995]